fUST/lending_fUST_20250723
["ID","MTS","AMOUNT","RATE_DAILY","PERIOD"]
[374171254,1753237841741,-934.8,0.00018975,2]
[374171256,1753237841750,-488.15,0.00018978,2]
[374171258,1753237841761,-1225.91,0.00018978,2]
[374171260,1753237841771,-460.0,0.00018978,2]
[374171262,1753237841781,-570.33,0.00018978,2]
[374171264,1753237841790,-223.80317226,0.00019,20]
[374171266,1753237841799,-3130.84155714,0.00019003,2]
[374171281,1753237841923,-1500.0,0.00019111,2]
[374171283,1753237841933,-2162.96745745,0.00019148,2]
[374171285,1753237841942,-556.32967479,0.00019151,2]
[374171286,1753237841951,-2016.1,0.00019151,2]
[374171288,1753237841960,-1328.95,0.00019151,2]
[374171290,1753237841969,-460.0,0.00019151,2]
[374171292,1753237841978,-4000.1258238,0.00019178,2]
[374171294,1753237841987,-666.0,0.00019178,2]
[374171296,1753237841997,-224.55484,0.00019178,2]
[374171298,1753237842006,-1011.09,0.00019247,2]
[374171300,1753237842015,-460.0,0.00019247,2]
[374171302,1753237842024,-460.0,0.00019248,2]
[374171304,1753237842034,-460.0,0.00019248,2]
[374171306,1753237842043,-460.0,0.00019248,2]
[374171308,1753237842052,-460.0,0.00019248,2]
[374171310,1753237842061,-1968.47,0.00019249,2]
[374171312,1753237842070,-934.8,0.00019249,2]
[374171314,1753237842079,-488.15,0.00019252,2]
[374171316,1753237842088,-1225.91,0.00019252,2]
[374171318,1753237842098,-460.0,0.00019252,2]
[374171320,1753237842108,-570.33,0.00019252,2]
[374171322,1753237842117,-526.15909479,0.00019264,2]
[374171324,1753237842126,-160.0,0.00019264,2]
[374171326,1753237842136,-1500.0,0.00019264,2]
[374171328,1753237842145,-160.0,0.00019267,2]
[374171330,1753237842154,-160.0,0.00019267,2]
[374171332,1753237842163,-160.0,0.00019267,2]
[374171334,1753237842173,-12622.36869388,0.00019267,2]
[374171336,1753237842182,-231.11583447,0.00019267,2]
[374171338,1753237842191,-160.0,0.00019267,2]
[374171340,1753237842200,-160.0,0.00019267,2]
[374171342,1753237842209,-160.0,0.00019267,2]
[374171344,1753237842218,-160.0,0.00019267,2]
[374171346,1753237842227,-840.06856235,0.00019267,2]
[374171348,1753237842236,-160.0,0.00019267,2]
[374171350,1753237842245,-160.0,0.00019267,2]
[374171352,1753237842254,-476.696448,0.00019267,2]
[374171354,1753237842263,-214.67886746,0.00019267,2]
[374171356,1753237842272,-215.84326551,0.00019267,2]
[374171358,1753237842281,-3130.84155714,0.00019279,2]
[374171360,1753237842291,-100000.0,0.00019329,2]
[374171361,1753237842301,-160.0,0.0001938,2]
[374171364,1753237842311,-2016.1,0.00019425,2]
[374171365,1753237842321,-1328.95,0.00019425,2]
[374171368,1753237842330,-460.0,0.00019425,2]
[374171369,1753237842340,-1011.09,0.00019521,2]
[374171371,1753237842349,-460.0,0.00019521,2]
[374171373,1753237842360,-460.0,0.00019522,2]
[374171375,1753237842369,-460.0,0.00019522,2]
[374171377,1753237842378,-200.36,0.00019522,2]
[374171379,1753237842387,-460.0,0.00019522,2]
[374171381,1753237842396,-1968.47,0.00019523,2]
[374171383,1753237842405,-934.8,0.00019523,2]
[374171385,1753237842414,-488.15,0.00019526,2]
[374171387,1753237842423,-1225.91,0.00019526,2]
[374171389,1753237842432,-460.0,0.00019526,2]
[374171391,1753237842442,-570.33,0.00019526,2]
[374171393,1753237842450,-3130.84155714,0.00019555,2]
[374171395,1753237842460,-1649.29,0.00019592,2]
[374171397,1753237842469,-2000.0,0.00019659,2]
[374171399,1753237842478,-2016.1,0.00019699,2]
[374171401,1753237842487,-1328.95,0.00019699,2]
[374171403,1753237842496,-460.0,0.00019699,2]
[374171405,1753237842505,-1011.09,0.00019795,2]
[374171407,1753237842514,-460.0,0.00019795,2]
[374171409,1753237842523,-460.0,0.00019796,2]
[374171411,1753237842532,-460.0,0.00019796,2]
[374171413,1753237842542,-460.0,0.00019796,2]
[374171415,1753237842551,-1968.47,0.00019797,2]
[374171417,1753237842561,-934.8,0.00019797,2]
[374171419,1753237842570,-488.15,0.000198,2]
[374171421,1753237842579,-1225.91,0.000198,2]
[374171423,1753237842588,-460.0,0.000198,2]
[374171425,1753237842598,-570.33,0.000198,2]
[374171427,1753237842612,-1508.39549157,0.00019812,2]
[374171429,1753237842621,-3130.84155714,0.00019831,2]
[374171431,1753237842630,-260.0,0.00019928,2]
[374171433,1753237842639,-2016.1,0.00019973,2]
[374171435,1753237842649,-1328.95,0.00019973,2]
[374171437,1753237842658,-460.0,0.00019973,2]
[374171439,1753237842667,-6931.41747856,0.0002,2]
[374171441,1753237842676,-14353.61358107,0.0002,2]
[374171443,1753237842688,-3196.09786644,0.0002,2]
[374171444,1753237842697,-362.89968044,0.0002,2]
[374171446,1753237842706,-47356.75062925,0.0002,2]
[374171448,1753237842715,-1011.09,0.00020069,2]
[374171450,1753237842726,-460.0,0.00020069,2]
[374171452,1753237842735,-460.0,0.0002007,2]
[374171454,1753237842744,-460.0,0.0002007,2]
[374171456,1753237842755,-529.5,0.0002007,2]
[374171458,1753237842764,-1968.47,0.00020071,2]
[374171460,1753237842773,-934.8,0.00020071,2]
[374171462,1753237842783,-488.15,0.00020074,2]
[374171464,1753237842792,-1225.91,0.00020074,2]
[374171466,1753237842801,-460.0,0.00020074,2]
[374171468,1753237842810,-570.33,0.00020074,2]
[374171470,1753237842819,-151.0,0.00020078,2]
[374171472,1753237842828,-151.0,0.00020078,2]
[374171474,1753237842837,-151.0,0.00020078,2]
[374171476,1753237842847,-500.0,0.00020078,2]
[374171478,1753237842858,-151.0,0.00020078,2]
[374171480,1753237842867,-500.0,0.00020078,2]
[374171482,1753237842876,-151.28823923,0.00020078,2]
[374171484,1753237842885,-151.0,0.00020078,2]
[374171486,1753237842895,-3130.84155714,0.00020107,2]
[374171488,1753237842905,-505.965847,0.00020187,2]
[374171490,1753237842915,-512.44263308,0.00020207,2]
[374171492,1753237842924,-2016.1,0.00020247,2]
[374171494,1753237842933,-1328.95,0.00020247,2]
[374171496,1753237842942,-460.0,0.00020247,2]
[374171498,1753237842952,-1011.09,0.00020343,2]
[374171500,1753237842961,-460.0,0.00020343,2]
[374171502,1753237842970,-460.0,0.00020344,2]
[374171504,1753237842980,-460.0,0.00020344,2]
[374171506,1753237842990,-1968.47,0.00020345,2]
[374171508,1753237842999,-934.8,0.00020345,2]
[374171510,1753237843008,-488.15,0.00020348,2]
[374171512,1753237843017,-1225.91,0.00020348,2]
[374171514,1753237843028,-460.0,0.00020348,2]
[374171516,1753237843037,-570.33,0.00020348,2]
[374171518,1753237843046,-252.79307641,0.00020352,2]
[374171520,1753237843055,-151.0,0.00020352,2]
[374171522,1753237843064,-151.0,0.00020352,2]
[374171524,1753237843074,-500.0,0.00020352,2]
[374171526,1753237843084,-151.0,0.00020352,2]
[374171528,1753237843094,-500.0,0.00020352,2]
[374171530,1753237843104,-3130.84155714,0.00020383,3]
[374171532,1753237843113,-360.0,0.00020476,2]
[374171534,1753237843123,-9298.51402985,0.000205,2]
[374171536,1753237843132,-2016.1,0.00020521,2]
[374171538,1753237843141,-1328.95,0.00020521,2]
[374171539,1753237843151,-460.0,0.00020521,2]
[374171541,1753237843160,-2162.96745742,0.00020611,2]
[374171543,1753237843169,-1011.09,0.00020616,2]
[374171545,1753237843178,-460.0,0.00020616,2]
[374171547,1753237843186,-460.0,0.00020618,2]
[374171549,1753237843196,-460.0,0.00020618,2]
[374171551,1753237843205,-848.005,0.00020619,2]
[374171553,1753237843214,-1968.47,0.00020619,2]
[374171555,1753237843223,-934.8,0.00020619,2]
[374171557,1753237843232,-488.15,0.00020622,2]
[374171559,1753237843241,-1225.91,0.00020622,2]
[374171561,1753237843250,-460.0,0.00020622,2]
[374171563,1753237843259,-570.33,0.00020622,2]
[374171565,1753237843267,-188.77257096,0.00020626,2]
[374171567,1753237843277,-500.0,0.00020626,2]
[374171569,1753237843286,-500.0,0.00020626,2]
[374171571,1753237843295,-3130.84155714,0.00020659,3]
[374171573,1753237843304,-2016.1,0.00020795,2]
[374171574,1753237843313,-1328.95,0.00020795,2]
[374171575,1753237843322,-460.0,0.00020795,2]
[374171576,1753237843332,-1924.17,0.00020817,2]
[374171577,1753237843342,-1011.09,0.0002089,2]
[374171578,1753237843351,-460.0,0.0002089,2]
[374171579,1753237843363,-500.0,0.00020892,2]
[374171580,1753237843372,-465.32,0.00020892,2]
[374171581,1753237843382,-460.0,0.00020892,2]
[374171582,1753237843391,-1968.47,0.00020893,2]
[374171583,1753237843401,-934.8,0.00020893,2]
[374171584,1753237843410,-488.15,0.00020896,2]
[374171585,1753237843420,-1225.91,0.00020896,2]
[374171586,1753237843429,-460.0,0.00020896,2]
[374171587,1753237843439,-570.33,0.00020896,2]
[374171588,1753237843448,-500.0,0.000209,2]
[374171589,1753237843458,-3130.84155714,0.00020934,4]
[374171590,1753237843467,-167.1008017,0.00021001,2]
[374171591,1753237843477,-460.0,0.00021024,2]
[374171592,1753237843486,-2016.1,0.00021069,2]
[374171593,1753237843495,-1328.95,0.00021069,2]
[374171594,1753237843505,-460.0,0.00021069,2]
[374171595,1753237843515,-1011.09,0.00021164,2]
[374171597,1753237843524,-460.0,0.00021164,2]
[374171599,1753237843532,-460.0,0.00021166,2]
[374171601,1753237843544,-1968.47,0.00021167,2]
[374171603,1753237843553,-934.8,0.00021167,2]
[374171605,1753237843562,-488.15,0.0002117,2]
[374171608,1753237843572,-1225.91,0.0002117,2]
[374171609,1753237843581,-460.0,0.0002117,2]
[374171611,1753237843590,-570.33,0.0002117,2]
[374171614,1753237843600,-500.0,0.00021174,2]
[374171616,1753237843610,-3130.84155714,0.0002121,4]
[374171618,1753237843619,-2016.1,0.00021343,2]
[374171620,1753237843629,-1328.95,0.00021343,2]
[374171622,1753237843638,-460.0,0.00021343,2]
[374171624,1753237843647,-1011.09,0.00021438,2]
[374171625,1753237843656,-460.0,0.00021439,2]
[374171627,1753237843665,-1968.47,0.00021441,2]
[374171629,1753237843675,-934.8,0.00021441,2]
[374171631,1753237843688,-488.15,0.00021444,2]
[374171633,1753237843698,-1225.91,0.00021444,2]
[374171635,1753237843707,-460.0,0.00021444,2]
[374171637,1753237843717,-570.33,0.00021444,2]
[374171640,1753237843728,-500.0,0.00021448,2]
[374171641,1753237843737,-3130.84155714,0.00021486,5]
[374171643,1753237843747,-500.0,0.0002154,2]
[374171646,1753237843757,-560.0,0.00021572,2]
[374171648,1753237843768,-500.0,0.00021574,2]
[374171649,1753237843777,-2016.1,0.00021617,2]
[374171652,1753237843787,-1328.95,0.00021617,2]
[374171654,1753237843796,-174.99087381,0.00021617,2]
[374171656,1753237843806,-500.0,0.00021622,2]
[374171658,1753237843816,-508.26166298,0.00021661,2]
[374171660,1753237843825,-503.99302055,0.00021661,2]
[374171661,1753237843834,-500.0,0.00021661,2]
[374171663,1753237843843,-500.0,0.00021661,2]
[374171665,1753237843853,-500.0,0.00021661,2]
[374171667,1753237843863,-500.0,0.00021661,2]
[374171669,1753237843872,-1011.09,0.00021712,2]
[374171671,1753237843881,-201.19,0.00021713,2]
[374171673,1753237843890,-1968.47,0.00021715,2]
[374171675,1753237843900,-934.8,0.00021715,2]
[374171677,1753237843908,-488.15,0.00021718,2]
[374171679,1753237843917,-1225.91,0.00021718,2]
[374171681,1753237843926,-460.0,0.00021718,2]
[374171683,1753237843935,-570.33,0.00021718,2]
[374171685,1753237843944,-500.0,0.00021722,2]
[374171687,1753237843953,-3130.84155714,0.00021762,5]
[374171689,1753237843962,-566.47745381,0.00021772,2]
[374171691,1753237843971,-156.64231511,0.00021785,2]
[374171693,1753237843980,-500.66823057,0.00021789,2]
[374171695,1753237843989,-2016.1,0.00021891,2]
[374171697,1753237843999,-1328.95,0.00021891,2]
[374171699,1753237844009,-918.91,0.00021917,2]
[374171701,1753237844018,-588.73,0.00021917,2]
[374171703,1753237844027,-460.0,0.00021917,2]
[374171705,1753237844036,-460.0,0.00021917,2]
[374171707,1753237844046,-460.0,0.00021917,2]
[374171709,1753237844055,-460.0,0.00021917,2]
[374171711,1753237844064,-460.0,0.00021917,2]
[374171712,1753237844073,-460.0,0.00021917,2]
[374171714,1753237844082,-460.0,0.00021917,2]
[374171716,1753237844091,-460.0,0.00021917,2]
[374171718,1753237844101,-460.0,0.00021917,2]
[374171720,1753237844112,-460.0,0.00021917,2]
[374171722,1753237844121,-460.0,0.00021917,2]
[374171724,1753237844131,-526.3,0.00021917,2]
[374171727,1753237844141,-1647.8,0.00021917,2]
[374171729,1753237844151,-636.27,0.00021917,2]
[374171730,1753237844160,-460.0,0.00021917,2]
[374171732,1753237844169,-460.0,0.00021917,2]
[374171734,1753237844178,-460.0,0.00021917,2]
[374171736,1753237844187,-460.0,0.00021917,2]
[374171738,1753237844197,-460.0,0.00021917,2]
[374171740,1753237844206,-460.0,0.00021917,2]
[374171742,1753237844216,-460.0,0.00021917,2]
[374171744,1753237844225,-460.0,0.00021917,2]
[374171746,1753237844234,-460.0,0.00021917,2]
[374171748,1753237844243,-460.0,0.00021917,2]
[374171750,1753237844253,-460.0,0.00021917,2]
[374171752,1753237844262,-460.0,0.00021917,2]
[374171754,1753237844271,-460.0,0.00021917,2]
[374171756,1753237844280,-555.22831236,0.00021917,2]
[374171758,1753237844290,-994.38,0.00021917,2]
[374171760,1753237844299,-460.0,0.00021917,2]
[374171762,1753237844309,-460.0,0.00021917,2]
[374171764,1753237844318,-460.0,0.00021917,2]
[374171766,1753237844327,-463.59684902,0.00021917,2]
[374171768,1753237844337,-460.0,0.00021917,2]
[374171769,1753237844346,-460.0,0.00021917,2]
[374171770,1753237844356,-460.0,0.00021917,2]
[374171771,1753237844366,-1011.09,0.00021986,2]
[374171772,1753237844375,-1968.47,0.00021989,2]
[374171773,1753237844386,-934.8,0.00021989,2]
[374171774,1753237844396,-488.15,0.00021992,2]
[374171775,1753237844405,-1225.91,0.00021992,2]
[374171776,1753237844414,-460.0,0.00021992,2]
[374171777,1753237844423,-570.33,0.00021992,2]
[374171778,1753237844432,-500.0,0.00021996,2]
[374171779,1753237844441,-235.58,0.00022,7]
[374171780,1753237844451,-459.0,0.00022,7]
[374171781,1753237844460,-11395.59,0.00022,2]
[374171782,1753237844469,-3130.84155714,0.00022038,6]
[374171783,1753237844478,-2199.05,0.00022041,2]
[374171791,1753237844577,-2162.96745742,0.00022074,2]
[374171793,1753237844586,-500.0,0.00022083,2]
[374171795,1753237844595,-502.75912573,0.00022083,2]
[374171797,1753237844604,-500.0,0.00022083,2]
[374171799,1753237844614,-501.71492827,0.00022088,2]
[374171801,1753237844622,-501.48761306,0.000221,2]
[374171803,1753237844631,-500.0,0.000221,2]
[374171805,1753237844640,-503.73116406,0.000221,2]
[374171807,1753237844649,-412.24016643,0.000221,2]
[374171809,1753237844659,-500.0,0.000221,2]
[374171811,1753237844669,-500.0,0.000221,2]
[374171813,1753237844679,-1010.05668947,0.000221,2]
[374171815,1753237844696,-151.177125,0.0002211,7]
[374171817,1753237844705,-660.0,0.0002212,2]
[374171819,1753237844715,-2016.1,0.00022165,2]
[374171821,1753237844725,-1328.95,0.00022165,2]
[374171823,1753237844734,-1004.03453028,0.0002217,2]
[374171825,1753237844743,-918.91,0.00022191,2]
[374171827,1753237844753,-460.0,0.00022191,2]
[374171829,1753237844763,-460.0,0.00022191,2]
[374171831,1753237844772,-460.0,0.00022191,2]
[374171833,1753237844782,-460.0,0.00022191,2]
[374171835,1753237844790,-460.0,0.00022191,2]
[374171837,1753237844800,-460.0,0.00022191,2]
[374171839,1753237844809,-460.0,0.00022191,2]
[374171841,1753237844818,-460.0,0.00022191,2]
[374171843,1753237844828,-460.0,0.00022191,2]
[374171845,1753237844837,-526.3,0.00022191,2]
[374171847,1753237844847,-1647.8,0.00022191,2]
[374171849,1753237844856,-636.27,0.00022191,2]
[374171851,1753237844866,-460.0,0.00022191,2]
[374171853,1753237844876,-471.6876449,0.00022191,2]
[374171854,1753237844885,-460.0,0.00022191,2]
[374171856,1753237844894,-460.0,0.00022191,2]
[374171858,1753237844904,-151.18,0.00022191,2]
[374171860,1753237844913,-460.0,0.00022191,2]
[374171862,1753237844923,-460.0,0.00022191,2]
[374171864,1753237844932,-460.0,0.00022191,2]
[374171866,1753237844941,-460.0,0.00022191,2]
[374171868,1753237844951,-460.0,0.00022191,2]
[374171870,1753237844960,-460.0,0.00022191,2]
[374171872,1753237844969,-460.0,0.00022191,2]
[374171874,1753237844978,-482.2,0.00022191,2]
[374171876,1753237844987,-994.38,0.00022191,2]
[374171878,1753237844997,-460.0,0.00022191,2]
[374171880,1753237845007,-460.0,0.00022191,2]
[374171882,1753237845015,-460.0,0.00022191,2]
[374171884,1753237845025,-460.0,0.00022191,2]
[374171886,1753237845034,-472.58471755,0.00022192,2]
[374171888,1753237845043,-500.0,0.00022192,2]
[374171890,1753237845052,-500.0,0.00022192,2]
[374171892,1753237845061,-500.0,0.00022192,2]
[374171894,1753237845070,-798.08399168,0.00022209,2]
[374171896,1753237845080,-1011.09,0.0002226,2]
[374171898,1753237845089,-1968.47,0.00022263,2]
[374171900,1753237845098,-934.8,0.00022263,2]
[374171902,1753237845107,-488.15,0.00022266,2]
[374171904,1753237845117,-1225.91,0.00022266,2]
[374171906,1753237845126,-460.0,0.00022266,2]
[374171908,1753237845135,-570.33,0.00022266,2]
[374171910,1753237845144,-500.0,0.0002227,2]
[374171912,1753237845154,-3130.84155714,0.00022314,7]
[374171914,1753237845164,-151.0,0.000224,7]
[374171916,1753237845174,-3014.841688,0.0002241,2]
[374171918,1753237845184,-151.0,0.00022426,2]
[374171920,1753237845193,-151.0,0.00022426,2]
[374171922,1753237845202,-151.0,0.00022426,2]
[374171924,1753237845212,-151.0,0.00022426,2]
[374171926,1753237845221,-2216.17534937,0.00022426,2]
[374171928,1753237845232,-151.0,0.00022426,2]
[374171930,1753237845241,-151.0,0.00022426,2]
[374171932,1753237845250,-151.0,0.00022426,2]
[374171934,1753237845260,-151.0,0.00022426,2]
[374171936,1753237845269,-151.0,0.00022426,2]
[374171938,1753237845278,-215.0738,0.00022426,2]
[374171939,1753237845287,-151.0,0.00022426,2]
[374171941,1753237845296,-152.45592811,0.00022426,2]
[374171943,1753237845306,-151.0,0.00022426,2]
[374171945,1753237845315,-151.0,0.00022426,2]
[374171947,1753237845324,-151.0,0.00022426,2]
[374171949,1753237845333,-151.0,0.00022426,2]
[374171951,1753237845342,-151.0,0.00022426,2]
[374171953,1753237845351,-151.0,0.00022426,2]
[374171955,1753237845361,-151.0,0.00022426,2]
[374171957,1753237845370,-151.0,0.00022426,2]
[374171959,1753237845379,-151.0,0.00022426,2]
[374171961,1753237845389,-151.0,0.00022426,2]
[374171963,1753237845398,-151.0,0.00022426,2]
[374171965,1753237845407,-25000.0,0.00022426,2]
[374171967,1753237845416,-151.0,0.00022426,2]
[374171969,1753237845425,-13232.14853917,0.00022426,2]
[374171971,1753237845435,-151.0,0.00022426,2]
[374171973,1753237845446,-151.0,0.00022426,2]
[374171975,1753237845455,-151.0,0.00022426,2]
[374171977,1753237845464,-151.0,0.00022426,2]
[374171979,1753237845473,-2016.1,0.00022439,2]
[374171981,1753237845483,-1328.95,0.00022439,2]
[374171983,1753237845492,-918.91,0.00022465,2]
[374171985,1753237845501,-460.0,0.00022465,2]
[374171987,1753237845510,-460.0,0.00022465,2]
[374171988,1753237845519,-460.0,0.00022465,2]
[374171990,1753237845529,-460.0,0.00022465,2]
[374171992,1753237845538,-460.0,0.00022465,2]
[374171994,1753237845548,-460.0,0.00022465,2]
[374171996,1753237845557,-460.0,0.00022465,2]
[374171998,1753237845566,-573.82,0.00022465,2]
[374172000,1753237845575,-526.3,0.00022465,2]
[374172002,1753237845584,-1647.8,0.00022465,2]
[374172004,1753237845593,-636.27,0.00022465,2]
[374172006,1753237845602,-460.0,0.00022465,2]
[374172008,1753237845612,-460.0,0.00022465,2]
[374172010,1753237845622,-460.0,0.00022465,2]
[374172012,1753237845631,-460.0,0.00022465,2]
[374172014,1753237845639,-460.0,0.00022465,2]
[374172016,1753237845649,-460.0,0.00022465,2]
[374172018,1753237845658,-460.0,0.00022465,2]
[374172020,1753237845667,-460.0,0.00022465,2]
[374172022,1753237845677,-460.0,0.00022465,2]
[374172024,1753237845691,-994.38,0.00022465,2]
[374172026,1753237845700,-460.0,0.00022465,2]
[374172028,1753237845709,-460.0,0.00022465,2]
[374172030,1753237845718,-460.0,0.00022465,2]
[374172032,1753237845729,-460.0,0.00022465,2]
[374172034,1753237845739,-1435.8,0.00022465,2]
[374172036,1753237845748,-1011.09,0.00022534,2]
[374172038,1753237845757,-1968.47,0.00022537,2]
[374172040,1753237845768,-934.8,0.00022537,2]
[374172042,1753237845777,-488.15,0.0002254,2]
[374172044,1753237845787,-1225.91,0.0002254,2]
[374172046,1753237845796,-350.03,0.0002254,2]
[374172048,1753237845806,-570.33,0.0002254,2]
[374172050,1753237845815,-500.0,0.00022544,2]
[374172052,1753237845824,-152.92453,0.00022544,7]
[374172054,1753237845833,-152.245241,0.00022544,7]
[374172056,1753237845843,-151.0,0.00022544,7]
[374172058,1753237845852,-152.376959,0.00022544,7]
[374172060,1753237845863,-3130.84155714,0.0002259,7]
[374172062,1753237845872,-224.55484,0.00022603,2]
[374172064,1753237845881,-1003.48331735,0.00022631,2]
[374172066,1753237845890,-507.17387455,0.00022631,2]
[374172068,1753237845899,-501.07883134,0.00022648,2]
[374172070,1753237845909,-1000.0,0.00022648,2]
[374172072,1753237845918,-2016.1,0.00022713,2]
[374172074,1753237845927,-1328.95,0.00022713,2]
[374172075,1753237845936,-918.91,0.00022739,2]
[374172077,1753237845946,-460.0,0.00022739,2]
[374172079,1753237845955,-460.0,0.00022739,2]
[374172081,1753237845964,-460.0,0.00022739,2]
[374172083,1753237845973,-460.0,0.00022739,2]
[374172085,1753237845983,-460.0,0.00022739,2]
[374172087,1753237845991,-460.0,0.00022739,2]
[374172089,1753237846000,-460.0,0.00022739,2]
[374172091,1753237846010,-526.3,0.00022739,2]
[374172093,1753237846019,-1647.8,0.00022739,2]
[374172095,1753237846028,-636.27,0.00022739,2]
[374172097,1753237846037,-482.59,0.00022739,2]
[374172099,1753237846046,-460.0,0.00022739,2]
[374172101,1753237846056,-460.0,0.00022739,2]
[374172103,1753237846065,-460.0,0.00022739,2]
[374172106,1753237846074,-460.0,0.00022739,2]
[374172109,1753237846083,-460.0,0.00022739,2]
[374172111,1753237846093,-460.0,0.00022739,2]
[374172113,1753237846102,-460.0,0.00022739,2]
[374172115,1753237846114,-994.38,0.00022739,2]
[374172117,1753237846123,-460.0,0.00022739,2]
[374172119,1753237846133,-460.0,0.00022739,2]
[374172121,1753237846142,-460.0,0.00022739,2]
[374172123,1753237846151,-460.0,0.00022739,2]
[374172125,1753237846160,-501.76289258,0.0002274,2]
[374172127,1753237846170,-1011.09,0.00022808,2]
[374172129,1753237846179,-1968.47,0.00022811,2]
[374172131,1753237846188,-934.8,0.00022811,2]
[374172133,1753237846198,-488.15,0.00022813,2]
[374172135,1753237846208,-1225.91,0.00022813,2]
[374172137,1753237846217,-570.33,0.00022813,2]
[374172139,1753237846226,-500.0,0.00022818,2]
[374172141,1753237846235,-3130.84155714,0.00022866,8]
[374172143,1753237846244,-4448.81,0.000229,7]
[374172145,1753237846253,-8193.7463235,0.000229,3]
[374172162,1753237846405,-151.0,0.00022426,2]
[374172164,1753237846414,-35.30898049,0.000229,3]
[374172174,1753237846509,-151.0,0.00022426,2]
[374172176,1753237846519,-166.05574683,0.00022426,2]
[374172178,1753237846528,-66.67425317,0.000229,3]
[374172180,1753237846542,-1317.44171667,0.000229,3]
[374172183,1753237846553,-2213.38871562,0.000229,3]
[374172185,1753237846562,-160.0,0.000229,3]
[374172186,1753237846572,-8142.13234946,0.00022929,2]
[374172197,1753237846669,253.89,0.00014538,2]
[374172204,1753237846725,507.78,0.00015859,2]
[374172215,1753237846934,-460.0,0.00021917,2]
[374172216,1753237846944,-460.0,0.00022191,2]
[374172217,1753237846954,-460.0,0.00022465,2]
[374172218,1753237846963,-184.83142431,0.00022739,2]
[374172219,1753237846972,-5939.96457569,0.00022929,2]
[374172504,1753237923026,150.0,0.0001575,2]
[374172506,1753237947765,2000.0,0.00023,30]
[374172507,1753237972886,24900.0,0.00016007,2]
[374172508,1753238007637,150.0,0.00015409,2]
[374172509,1753238090768,151.0,0.00014545,2]
[374172510,1753238091420,301.99,0.00015867,2]
[374172511,1753238173903,150.0,0.000133,2]
[374172512,1753238174306,290.46,0.00014509,2]
[374172513,1753238174762,435.69,0.00015718,2]
[374172514,1753238254969,162.07,0.00013143,2]
[374172515,1753238255406,324.13,0.00014337,2]
[374172516,1753238255804,486.2,0.00015532,2]
[374172517,1753238256220,648.27,0.00016727,2]
[374172518,1753238266436,455.369262,0.00013699,2]
[374172520,1753238311396,175.0,0.00026027,120]
[374172521,1753238333848,150.0,0.00013297,2]
[374172522,1753238334278,282.88,0.00014506,2]
[374172523,1753238334704,424.32,0.00015715,2]
[374172525,1753238415458,150.0,0.00013578,2]
[374172526,1753238415875,261.06,0.00014813,2]
[374172527,1753238416306,391.59,0.00016047,2]
[374172528,1753238588186,150.0,0.00016058,2]
[374172529,1753238671138,150.0,0.00016244,2]
[374172530,1753238759439,169.76,0.00016349,2]
[374172534,1753238840421,167.6,0.00016456,2]